fUSD/lending_fUSD_20240521
["ID","MTS","AMOUNT","RATE_DAILY","PERIOD"]
[327658707,1716287756881,-998.0,0.00036246,14]
[327658708,1716287756950,-998.0,0.00036301,14]
[327658709,1716287757019,-998.0,0.00036356,14]
[327658710,1716287757249,-998.0,0.0003641,14]
[327658711,1716287757312,-600.0,0.00036437,10]
[327658712,1716287757373,-500.0,0.00036437,10]
[327658713,1716287757433,-500.0,0.00036437,10]
[327658714,1716287757491,-500.0,0.00036437,10]
[327658715,1716287757554,-500.0,0.00036437,10]
[327658716,1716287757622,-703.4257298,0.00036465,14]
[327658717,1716287757766,-600.0,0.00036985,10]
[327658718,1716287757825,-500.0,0.00036985,10]
[327658719,1716287757965,-600.0,0.00037533,10]
[327658720,1716287758025,-500.0,0.00037533,10]
[327658721,1716287758084,-265.23771832,0.00037533,10]
[327658725,1716287800766,441937.64894954,0.00013,2]
[327658727,1716287839978,370.47,0.00029183,120]
[327658748,1716288020234,-423.50395095,0.00017257,2]
[327658749,1716288020260,-14934.38061909,0.00017259,2]
[327658750,1716288020286,-300.0,0.00017433,2]
[327658751,1716288020313,-175.17452619,0.00017533,2]
[327658752,1716288020341,-458.44,0.00017533,2]
[327658753,1716288020366,-214.03186271,0.000185,2]
[327658754,1716288020390,-155.0,0.00018998,2]
[327658755,1716288020415,-11433.26330655,0.00019,5]
[327658757,1716288034275,-12003.24557288,0.00019,5]
[327658758,1716288034304,-150.0,0.00019456,2]
[327658759,1716288034329,-1318.48,0.00019456,2]
[327658760,1716288034357,-150.0,0.00019468,2]
[327658761,1716288034384,-877.26864662,0.000195,2]
[327658762,1716288034414,-150.0,0.00019527,2]
[327658763,1716288034440,-499.99,0.00019527,2]
[327658764,1716288034468,-150.0,0.00019591,2]
[327658765,1716288034496,-150.0,0.00019631,2]
[327658766,1716288034524,-150.0,0.000197,2]
[327658767,1716288034552,-150.0,0.00019715,2]
[327658768,1716288034578,-155.0,0.00019899,2]
[327658769,1716288034603,-12189.81004599,0.000199,3]
[327658771,1716288188474,500.0,0.00013,2]
[327658772,1716288189382,500.0,0.00013,2]
[327658773,1716288189817,500.0,0.00013,2]
[327658774,1716288190285,500.0,0.00013,2]
[327658775,1716288190636,500.0,0.00013,2]
[327658776,1716288190993,500.0,0.00013,2]
[327658777,1716288191355,500.0,0.00013,2]
[327658778,1716288191781,500.0,0.00013,2]
[327658779,1716288192050,500.0,0.00013,2]
[327658780,1716288192417,500.0,0.00013,2]
[327658781,1716288192774,500.0,0.00013,2]
[327658782,1716288193164,500.0,0.00013,2]
[327658783,1716288193514,500.0,0.00013,2]
[327658784,1716288193871,500.0,0.00013,2]
[327658785,1716288194252,500.0,0.00013,2]
[327658786,1716288194557,500.0,0.00013,2]
[327658787,1716288194905,500.0,0.00013,2]
[327658788,1716288195258,500.0,0.00013,2]
[327658789,1716288195613,500.0,0.00013,2]
[327658790,1716288195968,500.0,0.00013,2]
[327658791,1716288196337,500.0,0.00013,2]
[327658792,1716288196699,500.0,0.00013,2]
[327658793,1716288197066,500.0,0.00013,2]
[327658794,1716288198443,500.0,0.00013,2]
[327658795,1716288198610,500.0,0.00013,2]
[327658796,1716288198964,500.0,0.00013,2]
[327658797,1716288199322,500.0,0.00013,2]
[327658798,1716288200059,500.0,0.00013,2]
[327658799,1716288200408,500.0,0.00013,2]
[327658800,1716288200815,500.0,0.00013,2]
[327658801,1716288201380,500.0,0.00013,2]
[327658802,1716288201533,925.0,0.00013,2]
[327658805,1716288344515,-296.06702621,0.00017259,2]
[327658806,1716288403746,161.58,0.00024933,120]
[327658807,1716288430107,-423.50395095,0.00017257,2]
[327658808,1716288430128,-7222.00686885,0.00017259,2]
[327658809,1716288430149,-4168.87141235,0.00019899,5]
[327658810,1716288430170,-6116.42557288,0.000199,3]
[327658811,1716288430192,-210.17,0.0002,2]
[327658812,1716288430212,-155.0,0.00021897,4]
[327658813,1716288430233,-155.0,0.00021898,2]
[327658814,1716288430253,-155.0,0.00021898,2]
[327658815,1716288430273,-994.48,0.00021899,2]
[327658816,1716288430293,-667.39048954,0.000219,2]
[327658817,1716288438206,-93.60951046,0.000219,2]
[327658818,1716288438227,-190.85,0.00021918,2]
[327658819,1716288438247,-787.45461326,0.00022999,2]
[327658820,1716288438268,-352.67357957,0.00023,2]
[327658828,1716288632848,-500.0,0.000219,2]
[327658829,1716288632866,-261.0,0.000219,2]
[327658830,1716288632877,-397.32642043,0.00023,2]
[327658831,1716288632886,-470.72818446,0.00025,7]
[327658832,1716288632895,-2730.11725847,0.00025066,2]
[327658833,1716288632908,-4476.44813225,0.00025066,2]
[327658835,1716288633172,-102.51460928,0.00025066,2]
[327658837,1716288633182,-357.01,0.00025786,2]
[327658839,1716288633192,-2125.18795783,0.00025786,2]
[327658860,1716288638839,-8644.24204217,0.00025786,2]
[327658861,1716288638849,-2663.0775386,0.00025786,2]
[327658862,1716288639139,-1754.9124614,0.00025786,2]
[327658864,1716288639149,-155.0,0.00026588,2]
[327658866,1716288639158,-305.37480479,0.00026589,2]
[327658867,1716288639168,-235.70932174,0.00026589,2]
[327658868,1716288639178,-2091.43171309,0.0002659,2]
[327658869,1716288641190,-111459.95304889,0.0002659,2]
[327658870,1716288641202,-584.00738402,0.0002659,2]
[327658871,1716288641215,-2538.34996953,0.0002659,2]
[327658872,1716288641227,-168836.97943124,0.0002659,2]
[327658873,1716288641237,-164.97,0.00026769,2]
[327658874,1716288641248,-942.45182649,0.00026801,2]
[327658875,1716288641257,-186.52537024,0.00026901,2]
[327658876,1716288641267,-250.0,0.00026965,2]
[327658877,1716288641277,-1167.25838027,0.00027001,2]
[327658879,1716288641286,-2751.0,0.00027101,2]
[327658880,1716288641296,-218.25,0.00027101,2]
[327658882,1716288641306,-961.84,0.000273,2]
[327658884,1716288641315,-1000.0,0.0002732,2]
[327658886,1716288641325,-4000.0,0.00027397,2]
[327658887,1716288641335,-250.0,0.00027518,2]
[327658888,1716288641345,-2560.36,0.0002762,2]
[327658889,1716288641355,-942.45182647,0.00027756,2]
[327658890,1716288641365,-1167.25838025,0.00027934,2]
[327658891,1716288641375,-942.45182647,0.00028712,2]
[327658892,1716288641385,-1167.25838025,0.00028867,2]
[327658893,1716288641394,-337.85,0.00029094,2]
[327658894,1716288641404,-176.57,0.0002913,2]
[327658895,1716288641414,-500.0,0.0002915,2]
[327658896,1716288641424,-4469.07899473,0.00029263,2]
[327658897,1716288641479,-3362.65,0.00029263,2]
[327658931,1716288643859,-500.32600203,0.00029263,2]
[327658932,1716288643872,-1670.96500324,0.00029263,2]
[327658933,1716288643882,-160.59,0.00029272,2]
[327658934,1716288643892,-2000.0,0.00029318,2]
[327658935,1716288643902,-250.0,0.0002933,2]
[327658936,1716288643914,-153.01,0.00029349,2]
[327658937,1716288643926,-884.1676621,0.0002951,2]
[327658938,1716288643935,-894.13133459,0.00029559,2]
[327658939,1716288644007,-32.8963363,0.00029559,2]
[327658940,1716288644197,-2260.50010713,0.00029559,2]
[327658941,1716288644654,-3141.59222198,0.00029559,2]
[327658944,1716288644664,-961.84,0.00029564,2]
[327658945,1716288644673,-942.45182647,0.00029667,2]
[327658946,1716288644683,-2179.56,0.00029699,2]
[327658948,1716288644692,-181.76,0.00029724,2]
[327658950,1716288644702,-200.0,0.00029762,2]
[327658953,1716288644711,-1167.25838025,0.00029801,2]
[327658955,1716288644720,-406.5461,0.00029973,10]
[327658957,1716288644730,-695.0,0.0003,5]
[327658959,1716288644739,-166.66666668,0.00030075,7]
[327658961,1716288644747,-181.76,0.0003024,2]
[327658962,1716288644756,-157.67562508,0.00030259,7]
[327658965,1716288644766,-154.1024266,0.00030341,7]
[327658967,1716288644775,-150.0,0.00030392,7]
[327658969,1716288644783,-329.08,0.00030472,2]
[327658970,1716288644792,-942.45182647,0.00030623,2]
[327658973,1716288644802,-1167.25838025,0.00030734,2]
[327658975,1716288644811,-1000.0,0.00030735,2]
[327658976,1716288644820,-181.76,0.00030756,2]
[327658978,1716288644829,-166.66666666,0.00030861,7]
[327658980,1716288644842,-151.46796663,0.00030866,7]
[327658982,1716288644851,-150.34933573,0.00030895,7]
[327658984,1716288644862,-151.46796663,0.00030946,7]
[327658986,1716288644870,-151.46796663,0.00031055,7]
[327658988,1716288644880,-186.52537022,0.00031151,2]
[327658990,1716288644889,-161.58,0.00031166,120]
[327658992,1716288644899,-157.67562508,0.00031188,7]
[327658994,1716288644909,-157.67562508,0.00031235,7]
[327658996,1716288644919,-152.20246737,0.00031247,7]
[327658998,1716288644929,-151.46796663,0.00031249,7]
[327659000,1716288644938,-150.0,0.00031265,7]
[327659002,1716288644947,-181.76,0.00031273,2]
[327659004,1716288644956,-151.46796663,0.00031279,7]
[327659006,1716288644965,-151.46796663,0.00031283,7]
[327659009,1716288644975,-682.39466917,0.00031505,4]
[327659011,1716288644983,-942.45182647,0.00031578,2]
[327659013,1716288644993,-1167.25838025,0.00031667,2]
[327659015,1716288645003,-153.99884084,0.00031757,7]
[327659017,1716288645012,-166.66666667,0.00031777,7]
[327659019,1716288645021,-961.84,0.00031828,2]
[327659021,1716288645030,-155.54294865,0.00031889,7]
[327659023,1716288645039,-717.79935011,0.00031892,4]
[327659025,1716288645048,-151.46796663,0.00032127,7]
[327659027,1716288645058,-150.0,0.00032139,7]
[327659029,1716288645067,-151.46796663,0.00032207,7]
[327659031,1716288645076,-180.0,0.00032313,2]
[327659033,1716288645085,-208.0,0.0003235,2]
[327659035,1716288645095,-155.54294865,0.00032381,7]
[327659036,1716288645104,-2179.56,0.00032439,2]
[327659038,1716288645115,-942.45182647,0.00032534,2]
[327659040,1716288645124,-152.89707066,0.00032556,7]
[327659043,1716288645135,-1167.25838025,0.000326,2]
[327659044,1716288645144,-150.34933573,0.00032633,7]
[327659046,1716288645153,-158.19046212,0.00032757,7]
[327659048,1716288645162,-155.38167806,0.00032799,7]
[327659050,1716288645172,-370.47,0.00032831,120]
[327659052,1716288645181,-157.67562508,0.00032874,7]
[327659054,1716288645190,-500.0,0.00032876,6]
[327659056,1716288645199,-525.67,0.00032876,6]
[327659058,1716288645209,-617.31,0.00032876,6]
[327659060,1716288645218,-500.0,0.00032876,6]
[327659062,1716288645227,-2513.31,0.00032876,6]
[327659064,1716288645237,-962.86,0.00032876,6]
[327659066,1716288645247,-1613.43,0.00032876,6]
[327659068,1716288645256,-4183.36,0.00032876,6]
[327659070,1716288645265,-3308.8,0.00032876,6]
[327659072,1716288645275,-1858.64,0.00032876,6]
[327659073,1716288645284,-2329.12,0.00032876,6]
[327659074,1716288645294,-783.19,0.00032876,6]
[327659075,1716288645304,-5607.3,0.00032876,6]
[327659076,1716288645313,-3970.56,0.00032876,6]
[327659077,1716288645323,-976.88,0.00032876,6]
[327659078,1716288645332,-2607.05,0.00032876,6]
[327659079,1716288645341,-500.0,0.00032876,6]
[327659080,1716288645351,-2500.81,0.00032876,6]
[327659081,1716288645362,-627.17357112,0.00032876,6]
[327659082,1716288645374,-2774.04642888,0.00032876,6]
[327659083,1716288645383,-1071.43,0.00032876,6]
[327659084,1716288645393,-1823.94,0.00032876,6]
[327659085,1716288645402,-1343.6,0.00032876,6]
[327659086,1716288645412,-1563.19,0.00032876,6]
[327659087,1716288645422,-500.0,0.00032876,6]
[327659088,1716288645431,-1772.42,0.00032876,6]
[327659089,1716288645441,-826.21,0.00032876,6]
[327659090,1716288645450,-1929.03,0.00032876,6]
[327659091,1716288645460,-1482.87,0.00032876,6]
[327659092,1716288645530,-1134.76,0.00032876,6]
[327659093,1716288645540,-500.0,0.00032986,6]
[327659094,1716288645549,-617.31,0.00032986,6]
[327659095,1716288645559,-500.0,0.00032986,6]
[327659096,1716288645568,-2513.31,0.00032986,6]
[327659097,1716288645578,-962.86,0.00032986,6]
[327659098,1716288645587,-1613.43,0.00032986,6]
[327659099,1716288645597,-4183.36,0.00032986,6]
[327659100,1716288645607,-3308.8,0.00032986,6]
[327659101,1716288645617,-1858.64,0.00032986,6]
[327659102,1716288645628,-2329.12,0.00032986,6]
[327659103,1716288645637,-783.19,0.00032986,6]
[327659104,1716288645646,-5607.3,0.00032986,6]
[327659105,1716288645657,-3970.56,0.00032986,6]
[327659106,1716288645667,-976.88,0.00032986,6]
[327659107,1716288645676,-2607.05,0.00032986,6]
[327659108,1716288645686,-500.0,0.00032986,6]
[327659109,1716288645696,-2500.81,0.00032986,6]
[327659110,1716288645705,-3401.22,0.00032986,6]
[327659111,1716288645715,-1071.43,0.00032986,6]
[327659112,1716288645723,-1823.94,0.00032986,6]
[327659113,1716288645733,-1343.6,0.00032986,6]
[327659114,1716288645742,-1563.19,0.00032986,6]
[327659115,1716288645752,-500.0,0.00032986,6]
[327659116,1716288645761,-1772.42,0.00032986,6]
[327659117,1716288645770,-826.21,0.00032986,6]
[327659118,1716288645780,-1929.03,0.00032986,6]
[327659119,1716288645791,-1482.87,0.00032986,6]
[327659120,1716288645800,-1134.76,0.00032986,6]
[327659121,1716288645810,-339.9422104,0.00032995,2]
[327659122,1716288645819,-150.0,0.00033012,7]
[327659123,1716288645831,-500.0,0.00033095,6]
[327659124,1716288645842,-617.31,0.00033095,6]
[327659125,1716288645851,-500.0,0.00033095,6]
[327659126,1716288645862,-2513.31,0.00033095,6]
[327659127,1716288645871,-962.86,0.00033095,6]
[327659128,1716288645880,-1613.43,0.00033095,6]
[327659129,1716288645889,-4183.36,0.00033095,6]
[327659130,1716288645899,-3308.8,0.00033095,6]
[327659131,1716288645909,-1858.64,0.00033095,6]
[327659132,1716288645922,-2329.12,0.00033095,6]
[327659133,1716288645931,-783.19,0.00033095,6]
[327659134,1716288645941,-5607.3,0.00033095,6]
[327659135,1716288645950,-3970.56,0.00033095,6]
[327659136,1716288645960,-976.88,0.00033095,6]
[327659137,1716288645969,-2607.05,0.00033095,6]
[327659138,1716288645980,-500.0,0.00033095,6]
[327659139,1716288645990,-2500.81,0.00033095,6]
[327659140,1716288646001,-3401.22,0.00033095,6]
[327659141,1716288646011,-1071.43,0.00033095,6]
[327659142,1716288646020,-1823.94,0.00033095,6]
[327659143,1716288646030,-1343.6,0.00033095,6]
[327659144,1716288646039,-1563.19,0.00033095,6]
[327659145,1716288646048,-500.0,0.00033095,6]
[327659146,1716288646057,-1772.42,0.00033095,6]
[327659147,1716288646066,-826.21,0.00033095,6]
[327659148,1716288646076,-1929.03,0.00033095,6]
[327659149,1716288646085,-1482.87,0.00033095,6]
[327659150,1716288646094,-1134.76,0.00033095,6]
[327659151,1716288646103,-208.0,0.0003312,2]
[327659152,1716288646114,-500.0,0.00033204,7]
[327659153,1716288646123,-500.0,0.00033204,7]
[327659154,1716288646132,-500.0,0.00033204,7]
[327659155,1716288646142,-500.0,0.00033204,7]
[327659156,1716288646151,-398.63153057,0.00033204,7]
[327659157,1716288646160,-513.13142568,0.00033204,7]
[327659158,1716288646169,-500.0,0.00033204,7]
[327659159,1716288646179,-500.0,0.00033204,7]
[327659160,1716288646188,-500.0,0.00033204,7]
[327659161,1716288646198,-500.0,0.00033204,7]
[327659162,1716288646207,-500.0,0.00033204,7]
[327659163,1716288646216,-500.0,0.00033204,7]
[327659164,1716288646226,-500.0,0.00033204,7]
[327659165,1716288646235,-500.0,0.00033204,7]
[327659166,1716288646245,-500.0,0.00033204,7]
[327659167,1716288646254,-500.0,0.00033204,7]
[327659168,1716288646264,-500.0,0.00033204,7]
[327659169,1716288646273,-500.0,0.00033204,7]
[327659170,1716288646283,-500.0,0.00033204,7]
[327659171,1716288646292,-500.0,0.00033204,7]
[327659172,1716288646301,-500.0,0.00033204,7]
[327659173,1716288646311,-500.0,0.00033204,7]
[327659174,1716288646321,-500.0,0.00033204,7]
[327659175,1716288646330,-500.0,0.00033204,7]
[327659176,1716288646339,-500.0,0.00033204,7]
[327659177,1716288646348,-500.0,0.00033204,7]
[327659178,1716288646357,-500.0,0.00033204,7]
[327659179,1716288646367,-500.0,0.00033204,7]
[327659180,1716288646376,-500.0,0.00033204,7]
[327659181,1716288646386,-500.0,0.00033204,7]
[327659182,1716288646395,-500.0,0.00033204,7]
[327659183,1716288646405,-500.0,0.00033204,7]
[327659184,1716288646415,-500.0,0.00033204,7]
[327659185,1716288646425,-500.0,0.00033204,7]
[327659186,1716288646434,-500.0,0.00033204,7]
[327659187,1716288646444,-500.0,0.00033204,7]
[327659188,1716288646454,-500.0,0.00033204,7]
[327659190,1716288646463,-500.0,0.00033204,7]
[327659191,1716288646473,-500.0,0.00033204,7]
[327659193,1716288646483,-500.0,0.00033204,7]
[327659195,1716288646492,-500.0,0.00033204,7]
[327659197,1716288646501,-500.0,0.00033204,7]
[327659199,1716288646510,-500.0,0.00033204,7]
[327659201,1716288646520,-500.0,0.00033204,7]
[327659202,1716288646530,-500.0,0.00033204,7]
[327659204,1716288646540,-500.0,0.00033204,7]
[327659205,1716288646550,-500.0,0.00033204,7]
[327659206,1716288646559,-500.0,0.00033204,7]
[327659207,1716288646569,-500.0,0.00033204,7]
[327659208,1716288646579,-500.0,0.00033204,7]
[327659209,1716288646588,-500.0,0.00033204,7]
[327659210,1716288646599,-500.0,0.00033204,7]
[327659211,1716288646609,-500.0,0.00033204,7]
[327659212,1716288646621,-500.0,0.00033204,7]
[327659213,1716288646631,-500.0,0.00033204,7]
[327659214,1716288646640,-500.0,0.00033204,7]
[327659215,1716288646650,-500.0,0.00033204,7]
[327659216,1716288646660,-500.0,0.00033204,7]
[327659217,1716288646670,-500.0,0.00033204,7]
[327659218,1716288646679,-362.95010194,0.00033204,7]
[327659219,1716288646688,-500.0,0.00033204,7]
[327659220,1716288646698,-500.0,0.00033204,7]
[327659221,1716288646707,-500.0,0.00033204,7]
[327659222,1716288646717,-500.0,0.00033204,7]
[327659223,1716288646727,-500.0,0.00033204,7]
[327659224,1716288646736,-500.0,0.00033204,7]
[327659225,1716288646745,-500.0,0.00033204,7]
[327659226,1716288646756,-500.0,0.00033205,6]
[327659227,1716288646765,-617.31,0.00033205,6]
[327659228,1716288646775,-500.0,0.00033205,6]
[327659229,1716288646786,-2513.31,0.00033205,6]
[327659230,1716288646797,-962.86,0.00033205,6]
[327659231,1716288646807,-1613.43,0.00033205,6]
[327659232,1716288646817,-4183.36,0.00033205,6]
[327659233,1716288646826,-3308.8,0.00033205,6]
[327659234,1716288646836,-1858.64,0.00033205,6]
[327659235,1716288646849,-2329.12,0.00033205,6]
[327659236,1716288646860,-783.19,0.00033205,6]
[327659237,1716288646872,-5607.3,0.00033205,6]
[327659238,1716288646882,-3970.56,0.00033205,6]
[327659239,1716288646892,-976.88,0.00033205,6]
[327659240,1716288646901,-2607.05,0.00033205,6]
[327659241,1716288646910,-500.0,0.00033205,6]
[327659242,1716288646921,-2500.81,0.00033205,6]
[327659243,1716288646930,-3401.22,0.00033205,6]
[327659244,1716288646940,-1071.43,0.00033205,6]
[327659245,1716288646949,-1823.94,0.00033205,6]
[327659246,1716288646958,-1343.6,0.00033205,6]
[327659247,1716288646968,-1563.19,0.00033205,6]
[327659248,1716288646978,-500.0,0.00033205,6]
[327659249,1716288646988,-1772.42,0.00033205,6]
[327659250,1716288646998,-826.21,0.00033205,6]
[327659251,1716288647008,-1929.03,0.00033205,6]
[327659252,1716288647021,-1482.87,0.00033205,6]
[327659253,1716288647030,-1134.76,0.00033205,6]
[327659254,1716288647039,-157.67562508,0.00033253,7]
[327659255,1716288647048,-155.38167806,0.00033261,7]
[327659256,1716288647058,-150.34933573,0.00033269,7]
[327659257,1716288647067,-500.0,0.00033315,6]
[327659258,1716288647076,-617.31,0.00033315,6]
[327659259,1716288647085,-500.0,0.00033315,6]
[327659260,1716288647094,-2513.31,0.00033315,6]
[327659261,1716288647103,-962.86,0.00033315,6]
[327659262,1716288647116,-1613.43,0.00033315,6]
[327659263,1716288647125,-4183.36,0.00033315,6]
[327659264,1716288647134,-3308.8,0.00033315,6]
[327659265,1716288647143,-1858.64,0.00033315,6]
[327659266,1716288647152,-2329.12,0.00033315,6]
[327659267,1716288647161,-783.19,0.00033315,6]
[327659268,1716288647170,-5607.3,0.00033315,6]
[327659270,1716288647180,-3970.56,0.00033315,6]
[327659272,1716288647189,-976.88,0.00033315,6]
[327659274,1716288647198,-2607.05,0.00033315,6]
[327659276,1716288647207,-500.0,0.00033315,6]
[327659277,1716288647217,-2500.81,0.00033315,6]
[327659278,1716288647225,-3401.22,0.00033315,6]
[327659279,1716288647235,-1071.43,0.00033315,6]
[327659280,1716288647244,-1823.94,0.00033315,6]
[327659281,1716288647253,-1343.6,0.00033315,6]
[327659282,1716288647262,-1563.19,0.00033315,6]
[327659283,1716288647271,-500.0,0.00033315,6]
[327659284,1716288647281,-1772.42,0.00033315,6]
[327659285,1716288647290,-826.21,0.00033315,6]
[327659286,1716288647300,-1929.03,0.00033315,6]
[327659287,1716288647310,-1482.87,0.00033315,6]
[327659288,1716288647320,-1134.76,0.00033315,6]
[327659289,1716288647329,-151.46796663,0.00033316,7]
[327659290,1716288647338,-615.24,0.00033424,6]
[327659291,1716288647347,-617.31,0.00033424,6]
[327659292,1716288647356,-500.0,0.00033424,6]
[327659293,1716288647368,-2513.31,0.00033424,6]
[327659294,1716288647378,-962.86,0.00033424,6]
[327659295,1716288647387,-1613.43,0.00033424,6]
[327659296,1716288647396,-4183.36,0.00033424,6]
[327659297,1716288647406,-3308.8,0.00033424,6]
[327659298,1716288647415,-1858.64,0.00033424,6]
[327659299,1716288647424,-2329.12,0.00033424,6]
[327659300,1716288647434,-783.19,0.00033424,6]
[327659301,1716288647443,-5607.3,0.00033424,6]
[327659302,1716288647453,-3970.56,0.00033424,6]
[327659303,1716288647462,-976.88,0.00033424,6]
[327659304,1716288647471,-2607.05,0.00033424,6]
[327659305,1716288647480,-500.0,0.00033424,6]
[327659306,1716288647490,-2500.81,0.00033424,6]
[327659307,1716288647499,-3401.22,0.00033424,6]
[327659308,1716288647509,-1071.43,0.00033424,6]
[327659309,1716288647518,-1823.94,0.00033424,6]
[327659310,1716288647527,-1343.6,0.00033424,6]
[327659311,1716288647537,-1563.19,0.00033424,6]
[327659312,1716288647546,-500.0,0.00033424,6]
[327659313,1716288647555,-1772.42,0.00033424,6]
[327659314,1716288647564,-826.21,0.00033424,6]
[327659315,1716288647574,-1929.03,0.00033424,6]
[327659316,1716288647583,-1482.87,0.00033424,6]
[327659317,1716288647592,-1134.76,0.00033424,6]
[327659318,1716288647601,-151.46796663,0.00033441,7]
[327659319,1716288647612,-150.34933573,0.00033481,7]
[327659320,1716288647621,-151.46796663,0.00033494,7]
[327659321,1716288647630,-153.66,0.000335,2]
[327659322,1716288647639,-1167.25838025,0.00033534,2]
[327659323,1716288647648,-617.31,0.00033534,6]
[327659324,1716288647657,-515.76,0.00033534,6]
[327659325,1716288647667,-2513.31,0.00033534,6]
[327659326,1716288647676,-962.86,0.00033534,6]
[327659327,1716288647685,-1613.43,0.00033534,6]
[327659328,1716288647694,-4183.36,0.00033534,6]
[327659329,1716288647703,-3308.8,0.00033534,6]
[327659330,1716288647712,-1858.64,0.00033534,6]
[327659331,1716288647721,-2329.12,0.00033534,6]
[327659332,1716288647730,-783.19,0.00033534,6]
[327659333,1716288647739,-5607.3,0.00033534,6]
[327659334,1716288647748,-3970.56,0.00033534,6]
[327659335,1716288647757,-976.88,0.00033534,6]
[327659336,1716288647766,-2607.05,0.00033534,6]
[327659337,1716288647775,-500.0,0.00033534,6]
[327659338,1716288647784,-2500.81,0.00033534,6]
[327659339,1716288647793,-3401.22,0.00033534,6]
[327659340,1716288647802,-1071.43,0.00033534,6]
[327659341,1716288647811,-1823.94,0.00033534,6]
[327659342,1716288647821,-1343.6,0.00033534,6]
[327659343,1716288647833,-1563.19,0.00033534,6]
[327659344,1716288647843,-500.0,0.00033534,6]
[327659345,1716288647852,-1772.42,0.00033534,6]
[327659346,1716288647862,-826.21,0.00033534,6]
[327659347,1716288647871,-1929.03,0.00033534,6]
[327659348,1716288647882,-1482.87,0.00033534,6]
[327659349,1716288647891,-1134.76,0.00033534,6]
[327659350,1716288647900,-150.34933573,0.00033603,7]
[327659351,1716288647909,-151.46796663,0.00033628,7]
[327659352,1716288647920,-617.31,0.00033643,6]
[327659353,1716288647930,-2513.31,0.00033643,6]
[327659354,1716288647939,-962.86,0.00033643,6]
[327659355,1716288647948,-1613.43,0.00033643,6]
[327659356,1716288647957,-4183.36,0.00033643,6]
[327659357,1716288647967,-3308.8,0.00033643,6]
[327659358,1716288647977,-1858.64,0.00033643,6]
[327659359,1716288647986,-2329.12,0.00033643,6]
[327659360,1716288647995,-783.19,0.00033643,6]
[327659361,1716288648004,-5607.3,0.00033643,6]
[327659362,1716288648015,-3970.56,0.00033643,6]
[327659363,1716288648025,-976.88,0.00033643,6]
[327659364,1716288648034,-2607.05,0.00033643,6]
[327659365,1716288648043,-500.0,0.00033643,6]
[327659366,1716288648053,-2500.81,0.00033643,6]
[327659367,1716288648063,-3401.22,0.00033643,6]
[327659368,1716288648072,-1071.43,0.00033643,6]
[327659369,1716288648081,-1823.94,0.00033643,6]
[327659370,1716288648091,-1343.6,0.00033643,6]
[327659371,1716288648100,-1563.19,0.00033643,6]
[327659372,1716288648111,-500.0,0.00033643,6]
[327659373,1716288648120,-1772.42,0.00033643,6]
[327659374,1716288648129,-826.21,0.00033643,6]
[327659375,1716288648137,-1929.03,0.00033643,6]
[327659376,1716288648147,-1482.87,0.00033643,6]
[327659377,1716288648156,-2004.39593691,0.00033664,2]
[327659378,1716288648165,-8908.39678456,0.00033676,2]
[327659379,1716288648175,-617.31,0.00033753,6]